[Event "German Bundesliga 2022-23"]
[Site "Germany"]
[Date "2022.10.23"]
[Round "2.13"]
[White "Edouard, Romain"]
[Black "Andersen, Mads"]
[Result "0-1"]
[ECO "A34"]
[WhiteElo "2554"]
[BlackElo "2604"]
[Annotator "TA"]
[PlyCount "118"]
[EventDate "2022.10.21"]
[EventType "team-tourn"]
[EventCountry "GER"]
[SourceTitle "playchess.com"]
[Source "ChessBase"]
[SourceQuality "1"]
[TimeControl "40/6000+30:3000+30"]

{[%evp 16,118,12,0,0,0,0,0,0,0,0,0,0,-39,-44,-39,-38,-33,-36,-47,-50,-58,-69,-62,0,0,0,0,0,0,36,18,27,15,29,8,36,8,10,0,0,0,7,0,62,62,62,62,62,53,82,52,98,0,0,0,0,0,0,-420,-429,-396,-350,-351,-323,-276,-402,-402,-402,-402,-402,-522,-489,-493,-466,-485,-388,-465,-529,-426,-356,-235,-55,-1326,-1810,-426,-1160,-4442,-418,-418,-418,-29977,-29978,-29978,-29979,-29979,-29980,-29980,-29981,-29981,-29980,-29980,-29978,-29992,-29993]} 1. c4 {[%emt 0:00:02]} c5 {[%emt 0:00:41]} 2. Nf3 {[%emt 0:00:12]} Nf6 {[%emt 0:00:21]} 3. Nc3 {[%emt 0:00:20]} d5 {[%emt 0:01:03]} 4. cxd5 {[%emt 0:00:07]} Nxd5 {[%emt 0:00:08]} 5. e3 {[%emt 0:03:04]} e6 {[%emt 0:00:46]} 6. d4 {[%emt 0:00:54]} Nc6 {[%emt 0:05:33][%cal Bb8c6,Bc6e7,Be7f5][%mdl 32]} 7. Bb5 {[%emt 0:01:58]} cxd4 {[%emt 0:08:20]} 8. exd4 {[%emt 0:00:25]} Bb4 {[%emt 0:07:08]} 9. Bd2 {[%emt 0:00:35]} O-O {[%emt 0:00:43] B14: Caro-Kann: Panov-Botvinnik Attack with 5...e6 and 5...g6.} 10. O-O {[%emt 0:00:05]} Nce7 {[%emt 0:07:43]} 11. a3 {[%emt 0:01:41]} Bd6 {[%emt 0:12:52] The position is equal.} 12. Bd3 {[%emt 0:02:03] [#]} b6 $146 {[%emt 0:04:26]} ({Predecessor:} 12... Bd7 13. Ng5 Nf6 14. Nce4 Nxe4 15. Nxe4 Bc6 16. Re1 Bxe4 17. Bxe4 Qb6 18. Qf3 Rfd8 {1-0 (60) Rausis,I (2495)-Pogorelov,R (2450) Las Palmas 1996}) 13. Re1 {[%emt 0:00:41]} Bb7 {[%emt 0:03:21]} 14. Ne4 {[%emt 0:00:19]} Bf4 {[%emt 0:04:52]} 15. Rc1 {[%emt 0:01:11]} Nf5 {[%emt 0:02:08]} 16. Bb1 {[%emt 0:01:06]} Rc8 {[%emt 0:06:04]} 17. Bxf4 {[%emt 0:00:37]} Nxf4 {[%emt 0:00:09]} 18. Qd2 {[%emt 0:00:05]} Rxc1 {[%emt 0:10:27]} 19. Rxc1 {[%emt 0:00:12]} e5 {[%emt 0:04:17] Black is more active.} (19... Ng6 $15) 20. g3 $1 $11 {[%emt 0:02:46]} (20. Nxe5 $2 Nxd4 $1 21. Rd1 Nde2+ 22. Kf1 Qh4 $19) (20. dxe5 $2 Qxd2 21. Nexd2 Ne2+ 22. Kf1 Nxc1 $19) 20... Bxe4 {[%emt 0:03:25]} 21. Bxe4 {[%emt 0:00:15]} Nxd4 {[%emt 0:00:12]} 22. Nxd4 {[%emt 0:01:15]} Qxd4 {[%emt 0:00:13][%mdl 64] Remove Defender} 23. Qxd4 {[%emt 0:00:08]} Ne2+ {[%emt 0:00:07]} 24. Kg2 {[%emt 0:00:45][%cal Oe4h7] Threatens to win with Bxh7+!} Nxd4 {[%emt 0:00:10][%mdl 4096] Endgame KRB-KRN} 25. Rc7 {[%emt 0:00:07]} a5 {[%emt 0:03:03]} (25... f5 $5 {[%cal Rf5e4]} 26. Bd5+ Kh8 $14) 26. Rb7 {[%emt 0:00:31]} b5 {[%emt 0:04:19]} (26... f5 $5 {[%cal Rf5e4]} 27. Bd5+ Kh8 $11) 27. Bd3 {[%emt 0:00:18]} Rc8 {[%emt 0:03:39]} 28. Bxb5 {[%emt 0:00:18]} f5 {[%emt 0:00:39]} 29. b3 {[%emt 0:01:11]} Rc2 {[%emt 0:04:04]} (29... Kf8 $1 $11) 30. Bc4+ $14 {[%emt 0:02:03]} Kf8 {[%emt 0:00:09][%cal Oa5a4]} 31. Rf7+ {[%emt 0:02:17]} Ke8 {[%emt 0:00:38][%cal Oc2c4] White must now prevent ...Rxc4!} 32. Ra7 $1 {[%emt 0:00:29]} ({Reject} 32. Rxg7 a4 $11) 32... e4 {[%emt 0:05:48]} 33. Rxa5 {[%emt 0:00:05] Hoping for Rd5.} ({But not} 33. Rxg7 $2 e3 34. Kh1 (34. Rxh7 $2 Rxf2+ 35. Kg1 Nf3+ 36. Kh1 e2 $19) 34... Rxf2 $19) 33... g6 {[%emt 0:00:11]} 34. Re5+ {[%emt 0:02:03]} (34. g4 $1 $16) 34... Kf8 $11 {[%emt 0:00:02]} 35. g4 {[%emt 0:15:39] And now gxf5 would win.} Nf3 {[%emt 0:00:28]} 36. Re6 {[%emt 0:05:26]} Rc1 {[%emt 0:01:56]} (36... Ng5 $5 37. Re5 $8 Nf3 $11) 37. Kg3 $2 {[%emt 0:01:56][%mdl 8192]} (37. Bf1 $1 $11 {and White has nothing to worry.}) 37... Rg1+ $19 {[%emt 0:04:54]} 38. Kf4 {[%emt 0:00:01]} Rxg4+ {[%emt 0:00:09]} 39. Ke3 {[%emt 0:00:02]} f4+ $1 {[%emt 0:00:10]} 40. Kxe4 {[%emt 0:00:18]} Ng5+ {[%emt 0:00:10]} 41. Ke5 {[%emt 0:51:14]} Nxe6 {[%emt 0:51:09]} 42. Bxe6 {[%emt 0:00:01] KR-KB} Rg2 {[%emt 0:02:58][%csl LRf2,LRh2]} 43. Kxf4 {[%emt 0:00:09]} Rxf2+ {[%emt 0:00:00]} 44. Kg3 {[%emt 0:00:00]} Ra2 {[%emt 0:00:00]} 45. a4 {[%emt 0:00:00]} Ke7 {[%emt 0:00:00]} 46. Bg8 {[%emt 0:00:00]} Kf6 {[%emt 0:00:00]} 47. h4 {[%emt 0:00:00]} h6 {[%emt 0:00:00][%cal Bh7h6,Bh6h5,Bh5h4,Bh4h3][%mdl 32]} 48. Bc4 {[%emt 0:00:00]} g5 $2 {[%emt 0:00:00]} (48... h5 $19 {aiming for ...g5.} 49. Kf4 Ra1) 49. hxg5+ $2 {[%emt 0:00:00][%mdl 8192] White does not recover from this.} (49. Kg4 $15) 49... Kxg5 {[%emt 0:00:00]} 50. Bd5 {[%emt 0:00:00]} h5 {[%emt 0:00:00]} 51. Bc4 {[%emt 0:00:00]} h4+ {[%emt 0:00:00]} 52. Kh3 {[%emt 0:00:00]} Rc2 {[%emt 0:00:00] ( -> ...Rc3+)} 53. a5 {[%emt 0:00:00]} (53. Be6 $19) 53... Rc3+ {[%emt 0:00:00] Black mates.} 54. Kh2 {[%emt 0:00:00] [#]} h3 $1 {[%emt 0:00:00]} 55. a6 {[%emt 0:00:00] [#]} Kh4 $1 {[%emt 0:00:00]} 56. Bd5 {[%emt 0:00:00]} Rc2+ {[%emt 0:00:00]} 57. Kg1 {[%emt 0:00:00]} Ra2 {[%emt 0:00:00]} 58. b4 {[%emt 0:00:00]} Rxa6 {[%emt 0:00:00]} 59. b5 {[%emt 0:00:00]} Rf6 {[%emt 0:00:00] Weighted Error Value: White=0.53/Black=0.12 (very precise)} 0-1

[Event "German Bundesliga 2022-23"]
[Site "Germany"]
[Date "2022.10.23"]
[Round "2.13"]
[White "Bogosavljevic, Boban"]
[Black "Fedorchuk, Sergey A."]
[Result "1/2-1/2"]
[ECO "A37"]
[WhiteElo "2533"]
[BlackElo "2619"]
[Annotator "TA"]
[PlyCount "174"]
[EventDate "2022.10.21"]
[EventType "team-tourn"]
[EventCountry "GER"]
[SourceTitle "playchess.com"]
[Source "ChessBase"]
[SourceQuality "1"]
[TimeControl "40/6000+30:3000+30"]

{[%evp 12,174,0,0,5,0,15,-10,-14,-10,0,-44,25,25,85,94,84,54,143,164,175,77,99,-7,160,157,150,156,167,66,60,83,61,71,70,70,56,71,151,101,287,282,484,487,455,132,180,179,231,32,37,0,1,0,51,52,84,65,61,22,28,18,20,20,58,15,13,13,81,81,81,61,71,75,79,79,79,69,76,60,67,39,49,16,70,32,75,33,33,17,14,14,14,0,14,0,33,23,67,0,12,0,0,0,0,0,0,0,0,0,0,-8,0,0,0,0,0,0,42,0,8,0,7,7,8,7,8,8,8,0,0,0,8,8,8,8,8,8,8,8,16,0,8,0,0,0,0,0,0,0,0,0,0,0,0,0,0,0,0,0,0,0,0,0,0]} 1. Nf3 {[%emt 0:00:09]} c5 {[%emt 0:01:13]} 2. c4 {[%emt 0:00:45]} Nc6 {[%emt 0:00:47]} 3. g3 {[%emt 0:01:10]} g6 {[%emt 0:03:21]} 4. Bg2 {[%emt 0:00:10]} Bg7 {[%emt 0:00:21]} 5. Nc3 {[%emt 0:00:10]} e5 {[%emt 0:07:11]} 6. O-O {[%emt 0:05:50]} Nge7 {[%emt 0:01:31]} 7. a3 {[%emt 0:16:37]} O-O {[%emt 0:05:59] A37: Symmetrical English vs ...g6: 4 Bg2 Bg7 5 Nf3.} 8. b4 {[%emt 0:20:52]} d5 {[%emt 0:20:56]} 9. bxc5 {[%emt 0:00:44]} (9. cxd5 {seems wilder.} Nxd5 10. Nxd5 Qxd5 11. Ng5) 9... dxc4 {[%emt 0:07:20][%cal Oe5e4]} 10. Rb1 {[%emt 0:01:15] [#]} Qa5 $146 {[%emt 0:03:43]} ({Predecessor:} 10... Na5 11. d3 cxd3 12. exd3 Bg4 13. h3 Bd7 14. Bg5 h6 15. Be3 Bc6 16. Qe2 Nf5 {1-0 (60) Georgiev,K (2645)-Jobava,B (2664) Barcelona 2008}) 11. Ng5 {[%emt 0:21:47][%cal Bf3g5,Bg5e4,Be4d6][%mdl 32]} Qxc5 {[%emt 0:11:26]} (11... f5 $15) 12. a4 $1 $11 {[%emt 0:05:02]} Nd4 {[%emt 0:20:38]} (12... Qd6 $11) 13. Nge4 $1 $16 {[%emt 0:00:21][%mdl 1024] White has strong compensation.} Qc7 {[%emt 0:00:15]} 14. Ba3 {[%emt 0:03:14]} f5 {[%emt 0:11:46] [#]} (14... b6 $14) 15. Nd6 $1 {[%emt 0:09:14]} e4 {[%emt 0:00:06]} 16. d3 {[%emt 0:09:42]} (16. e3 $18 Nf3+ 17. Bxf3 exf3 18. Ncb5 (18. Qxf3 Rd8 $16)) 16... cxd3 {[%emt 0:09:26]} 17. Ncb5 {[%emt 0:00:17]} (17. Ndb5 $16 Nxb5 18. Nxb5) 17... Nxb5 {[%emt 0:02:18]} (17... Nxe2+ $11 18. Qxe2 dxe2 19. Nxc7 exf1=N 20. Bxf1 Rb8) 18. Nxb5 {[%emt 0:00:16]} Qe5 {[%emt 0:00:37]} 19. exd3 {[%emt 0:08:49]} a6 {[%emt 0:00:21]} 20. Bb2 {[%emt 0:00:30]} ({Don't play} 20. d4 $6 Qf6 21. Nc7 Rb8 $14) (20. Nd6 $18) 20... Qc5 $1 $14 {[%emt 0:00:37] White must now prevent ...Bxb2.} 21. Rc1 {[%emt 0:03:34]} Qb6 {[%emt 0:00:03]} 22. Bxg7 {[%emt 0:00:07] Dancing on a razor blade.} Kxg7 {[%emt 0:00:03]} 23. Nc7 $36 {[%emt 0:00:12][%mdl 2048] White has good play.} Rb8 {[%emt 0:00:03]} 24. dxe4 {[%emt 0:00:10]} f4 {[%emt 0:00:09]} ({Black should try} 24... fxe4 25. Qc2 Qf6) 25. a5 {[%emt 0:00:27]} (25. Rc4 $142) 25... Qf6 $2 {[%emt 0:00:29] [#]} (25... Qxa5 $16 {is a better defense.} 26. gxf4 Nc6) 26. e5 $1 $18 {[%emt 0:00:39]} ({Weaker is} 26. Nd5 Nxd5 27. exd5 (27. Qxd5 f3 $14) 27... Qd6 $16) 26... Qxe5 {[%emt 0:00:25]} (26... Qf7 {might work better.} 27. Qd6 Bf5 28. gxf4 Kh8) 27. Re1 {[%emt 0:00:23]} Qf6 {[%emt 0:01:58]} 28. Qd2 $2 {[%emt 0:01:32]} (28. Qe2 $18 {and the rest is easy.}) 28... fxg3 {[%emt 0:00:50]} (28... Kh8 $16) 29. hxg3 {[%emt 0:00:04]} Bf5 {[%emt 0:00:20]} (29... Kh8 {was worth a try.} 30. Rb1 Bd7) 30. Qb4 $2 {[%emt 0:00:56]} (30. Qe3 $18) 30... Nc6 $14 {[%emt 0:00:22]} 31. Qc5 {[%emt 0:00:30]} (31. Qb6 $5 {[%cal Rc7d5]}) 31... Kh8 {[%emt 0:00:32]} 32. Nxa6 {[%emt 0:00:29]} bxa6 {[%emt 0:00:38]} (32... Rbc8 $11 33. Qb6 Nxa5 34. Qxf6+ Rxf6 35. Rxc8+ Bxc8) 33. Qxc6 {[%emt 0:00:09]} Bd3 {[%emt 0:00:31]} 34. Qxf6+ {[%emt 0:00:32]} (34. Qc5 {is more complex.} Rf7 35. Rcd1 Rb3 36. Re5) 34... Rxf6 {[%emt 0:00:04]} 35. Re7 {[%emt 0:00:49] Inhibits Rf7.} g5 {[%emt 0:00:27]} 36. Bb7 {[%emt 0:00:31]} Rbf8 {[%emt 0:00:26]} 37. f3 {[%emt 0:00:10]} R8f7 {[%emt 0:00:19]} 38. Rcc7 {[%emt 0:00:38]} Rxe7 {[%emt 0:01:12]} 39. Rxe7 $11 {[%emt 0:00:05][%mdl 4096] Endgame KRB-KRB} Bb5 {[%emt 0:00:31]} (39... h6 $11) 40. Be4 $16 {[%emt 0:01:03]} h6 {[%emt 0:00:07]} 41. Rc7 {[%emt 0:02:19] Inhibits Bc6.} Kg8 {[%emt 0:00:40]} 42. Kf2 {[%emt 0:00:41]} Rd6 {[%emt 0:04:13]} 43. Ke3 {[%emt 0:00:55]} Kf8 {[%emt 0:04:42]} 44. g4 {[%emt 0:08:13]} Ke8 {[%emt 0:04:40]} 45. Bf5 {[%emt 0:01:21]} Kd8 {[%emt 0:03:48]} 46. Ra7 {[%emt 0:04:12]} Rd1 {[%emt 0:10:35]} 47. Be4 {[%emt 0:14:01]} (47. Rh7 $5 {[%cal Rh7h6]}) 47... Rd6 {[%emt 0:05:58]} (47... Ra1 $11) 48. Rg7 {[%emt 0:08:56]} Be8 {[%emt 0:11:07]} 49. Rh7 {[%emt 0:01:38] White is more active.} Bd7 {[%emt 0:02:50]} 50. Bd3 {[%emt 0:03:03]} Re6+ {[%emt 0:00:57]} 51. Kd4 {[%emt 0:00:20]} Rd6+ {[%emt 0:00:08]} 52. Ke3 {[%emt 0:01:27]} Re6+ {[%emt 0:00:03]} 53. Be4 {[%emt 0:01:16]} Rd6 {[%emt 0:00:04]} 54. Rh8+ {[%emt 0:00:55]} Ke7 {[%emt 0:00:25]} 55. Rb8 {[%emt 0:03:30]} ({White should play} 55. Bb7 $1 $14) 55... Bb5 $11 {[%emt 0:01:04]} 56. Bf5 {[%emt 0:04:06]} Kf6 {[%emt 0:00:53]} 57. Rh8 {[%emt 0:00:56]} Ke5 {[%emt 0:00:29]} 58. Be4 {[%emt 0:00:18]} Bc6 {[%emt 0:03:58]} 59. Rb8 {[%emt 0:00:35]} Bb5 {[%emt 0:00:20]} 60. Rf8 {[%emt 0:00:35]} Rd1 {[%emt 0:00:51]} 61. Rh8 {[%emt 0:01:17]} Rd6 {[%emt 0:01:47]} 62. Rh7 {[%emt 0:00:09]} Rf6 {[%emt 0:00:33]} 63. Rc7 {[%emt 0:00:44]} Rd6 {[%emt 0:00:33]} 64. Rc5+ {[%emt 0:00:07]} Kf6 {[%emt 0:00:44]} 65. Rf5+ {[%emt 0:00:02]} Ke6 {[%emt 0:00:06] The position is equal.} 66. f4 {[%emt 0:00:14]} gxf4+ {[%emt 0:00:46]} 67. Kxf4 {[%emt 0:00:06]} Rd4 {[%emt 0:00:40]} 68. Ke3 {[%emt 0:01:01]} Ra4 {[%emt 0:01:07]} 69. Rh5 {[%emt 0:00:07]} Rxa5 {[%emt 0:00:14]} 70. Rxh6+ {[%emt 0:00:06]} Ke5 {[%emt 0:00:39] ...Ra3+ is the strong threat.} 71. Rh5+ {[%emt 0:00:05]} Ke6 {[%emt 0:00:43]} 72. Kf4 {[%emt 0:00:14]} Ra1 {[%emt 0:00:56]} 73. Rh6+ {[%emt 0:00:58]} Ke7 {[%emt 0:00:32]} 74. Ke5 {[%emt 0:00:32]} Re1 {[%emt 0:00:12]} 75. Rh7+ {[%emt 0:01:17]} Kd8 {[%emt 0:00:05]} 76. Kd4 {[%emt 0:00:53] Prevents Bd3.} Rd1+ {[%emt 0:00:30]} 77. Kc5 {[%emt 0:00:11]} Rd7 {[%emt 0:00:57]} 78. Rh8+ {[%emt 0:00:15]} Ke7 {[%emt 0:00:09]} 79. g5 {[%emt 0:00:29]} Ke6 {[%emt 0:01:00]} 80. Rf8 {[%emt 0:01:59]} Bd3 {[%emt 0:00:29]} 81. Bc6 {[%emt 0:00:31]} Rg7 {[%emt 0:00:27]} 82. Re8+ {[%emt 0:00:22]} Kf5 {[%emt 0:00:16]} 83. Kd4 {[%emt 0:00:05]} Bb5 {[%emt 0:00:19]} 84. Re5+ {[%emt 0:00:49]} Kf4 {[%emt 0:00:04]} 85. Bxb5 {[%emt 0:00:43]} axb5 {[%emt 0:00:05]} 86. Rxb5 {[%emt 0:00:05]} Rxg5 {[%emt 0:00:03]} 87. Rxg5 {[%emt 0:00:04]} Kxg5 {[%emt 0:00:02] White really could win this.  Weighted Error Value: White=0.30/Black=0.32} 1/2-1/2

[Event "German Bundesliga 2022-23"]
[Site "Germany"]
[Date "2022.10.23"]
[Round "2.14"]
[White "Van Wely, Loek"]
[Black "Hracek, Zbynek"]
[Result "1/2-1/2"]
[ECO "A20"]
[WhiteElo "2629"]
[BlackElo "2542"]
[Annotator "ChessBase"]
[PlyCount "71"]
[EventDate "2022.10.21"]
[EventType "team-tourn"]
[EventCountry "GER"]
[SourceTitle "playchess.com"]
[Source "ChessBase"]
[SourceQuality "1"]
[TimeControl "40/6000+30:3000+30"]

1. c4 {[%emt 0:00:07]} e5 {[%emt 0:00:14]} 2. g3 {[%emt 0:01:29]} Nf6 {[%emt 0:00:24]} 3. Bg2 {[%emt 0:00:21]} Bc5 {[%emt 0:00:15]} 4. Nc3 {[%emt 0:01:58]} c6 {[%emt 0:00:23]} 5. e4 {[%emt 0:20:02]} d5 {[%emt 0:17:37]} 6. exd5 {[%emt 0:00:59]} cxd5 {[%emt 0:01:34]} 7. cxd5 {[%emt 0:02:59]} Bf5 {[%emt 0:07:21]} 8. d3 {[%emt 0:06:13]} Qb6 {[%emt 0:05:08]} 9. Qe2 {[%emt 0:09:26]} O-O {[%emt 0:05:24]} 10. Nf3 {[%emt 0:07:38]} Qa6 {[%emt 0:02:20]} 11. Ne4 {[%emt 0:00:35]} Nbd7 {[%emt 0:12:35]} 12. Nh4 {[%emt 0:08:54]} Bg4 {[%emt 0:00:52]} 13. f3 {[%emt 0:04:18]} Bh5 {[%emt 0:07:49]} 14. Bh3 {[%emt 0:07:51]} Rad8 {[%emt 0:06:27]} 15. Bd2 {[%emt 0:10:38]} Bb6 {[%emt 0:05:34]} 16. Bxd7 {[%emt 0:04:22]} Nxd7 {[%emt 0:11:55]} 17. Nf5 {[%emt 0:03:58]} Nc5 {[%emt 0:02:15]} 18. Nxc5 {[%emt 0:03:09]} Bxc5 {[%emt 0:00:05]} 19. Rc1 {[%emt 0:02:56]} Bg6 {[%emt 0:06:34]} 20. Rxc5 {[%emt 0:02:01]} Bxf5 {[%emt 0:00:05]} 21. Ra5 {[%emt 0:00:54]} Qg6 {[%emt 0:02:53]} 22. Bb4 {[%emt 0:03:44]} Rfe8 {[%emt 0:03:25]} 23. d6 {[%emt 0:04:09]} Bxd3 {[%emt 0:05:25]} 24. Qe3 {[%emt 0:00:11]} e4 {[%emt 0:04:09]} 25. f4 {[%emt 0:01:33]} Rxd6 {[%emt 0:01:01]} 26. Rg5 {[%emt 0:01:22]} Qh6 {[%emt 0:00:20]} 27. Bxd6 {[%emt 0:00:13]} Qxd6 {[%emt 0:00:02]} 28. Qc5 {[%emt 0:00:09]} Qd7 {[%emt 0:01:21]} 29. Qc3 {[%emt 0:01:49]} g6 {[%emt 0:00:12]} 30. Re5 {[%emt 0:00:43]} Rc8 {[%emt 0:00:57]} 31. Rc5 {[%emt 0:00:02]} Re8 {[%emt 0:00:23]} 32. h3 {[%emt 0:00:45]} e3 {[%emt 0:00:40]} 33. Rh2 {[%emt 0:00:18]} e2 {[%emt 0:00:45]} 34. Re5 {[%emt 0:01:05]} Rc8 {[%emt 0:00:14]} 35. Rc5 {[%emt 0:00:23]} Re8 {[%emt 0:00:43]} 36. Re5 {[%emt 0:00:25]} 1/2-1/2

[Event "German Bundesliga 2022-23"]
[Site "Germany"]
[Date "2022.10.23"]
[Round "2.14"]
[White "Braun, Arik"]
[Black "Popovic, Dusan"]
[Result "1/2-1/2"]
[ECO "E71"]
[WhiteElo "2597"]
[BlackElo "2486"]
[Annotator "TA"]
[PlyCount "42"]
[EventDate "2022.10.21"]
[EventType "team-tourn"]
[EventCountry "GER"]
[SourceTitle "playchess.com"]
[Source "ChessBase"]
[SourceQuality "1"]
[TimeControl "40/6000+30:3000+30"]

{[%evp 9,42,39,52,32,41,42,77,37,55,46,41,40,42,40,33,14,8,4,16,7,15,20,33,36,34,45,53,-13,-14,-12,-13,-28,-24,-26,-27]} 1. d4 {[%emt 0:00:03]} Nf6 {[%emt 0:00:05]} 2. c4 {[%emt 0:00:04]} g6 {[%emt 0:00:05]} 3. Nc3 {[%emt 0:00:25]} Bg7 {[%emt 0:00:12]} 4. e4 {[%emt 0:00:06]} d6 {[%emt 0:00:05]} 5. h3 {[%emt 0:00:25]} Nbd7 {[%emt 0:01:22]} 6. Be3 {[%emt 0:07:09] E71: King's Indian: 4 e4 d6 5 h3.} e5 {[%emt 0:00:33]} 7. d5 {[%emt 0:01:55]} h5 {[%emt 0:00:06] [#]} 8. g3 $146 {[%emt 0:05:07] White is more active. White is better.} ({Predecessor:} 8. Bd3 Bh6 9. Bxh6 Rxh6 10. Qd2 Rh8 11. Nge2 Kf8 12. O-O Kg7 13. f4 exf4 14. Rxf4 {0-1 (49) Andreikin,D (2729)-Tabatabaei,M (2664) Chess.com INT 2022}) 8... Bh6 {[%emt 0:02:31]} 9. Bxh6 {[%emt 0:01:03]} Rxh6 {[%emt 0:00:04]} 10. Qd2 {[%emt 0:02:55]} Rh8 {[%emt 0:00:16]} 11. h4 {[%emt 0:02:49]} Nc5 {[%emt 0:00:31][%cal Bd7c5,Bc5a4,Ba4c3][%mdl 32]} 12. Bg2 {[%emt 0:04:47]} a5 {[%emt 0:04:38]} 13. O-O-O {[%emt 0:04:07]} Bd7 {[%emt 0:05:32]} 14. f3 {[%emt 0:04:24]} Qb8 {[%emt 0:04:34]} 15. Bh3 {[%emt 0:04:08]} Ba4 {[%emt 0:08:09]} 16. Nxa4 {[%emt 0:16:34]} Nxa4 {[%emt 0:00:06]} 17. Ne2 {[%emt 0:00:12]} b5 {[%emt 0:27:41]} 18. cxb5 {[%emt 0:05:47]} (18. Nc3 $14) 18... Qxb5 $11 {[%emt 0:01:15]} 19. Nc3 {[%emt 0:09:34]} Qc5 {[%emt 0:10:31] [#] aiming for ...Rb8.} 20. Kb1 {[%emt 0:06:42]} Nxc3+ {[%emt 0:01:50]} 21. Qxc3 {[%emt 0:00:04]} Qxc3 {[%emt 0:01:48] Weighted Error Value: White=0.13 (very precise) /Black=0.07 (flawless)} 1/2-1/2